[Event "Late-Titled-Tuesday-Blitz-November-28-2023"]
[Site "Chess.com"]
[Date "2023.11.28"]
[Round "1"]
[White "Chemim21"]
[Black "OPQRC"]
[Result "0-1"]
[WhiteElo "2218"]
[BlackElo "2559"]
[TimeControl "180+1"]
[EndTime "14:07:19 PST"]
[Termination "OPQRC won on time"]

1. d4 {[%clk 0:03:00.9]} 1... Nf6 {[%clk 0:02:56.9]} 2. Bf4 {[%clk 0:03:00.5]}
2... d5 {[%clk 0:02:53.8]} 3. e3 {[%clk 0:03:00.4]} 3... c5 {[%clk 0:02:51.4]}
4. c3 {[%clk 0:02:59.9]} 4... Nc6 {[%clk 0:02:51.2]} 5. Nd2 {[%clk 0:02:58.9]}
5... Bf5 {[%clk 0:02:48.1]} 6. Qb3 {[%clk 0:02:50.2]} 6... Qc8 {[%clk
0:02:35.1]} 7. Ngf3 {[%clk 0:02:42.2]} 7... e6 {[%clk 0:02:34.4]} 8. Bb5 {[%clk
0:02:39.2]} 8... Be7 {[%clk 0:02:30.2]} 9. Ne5 {[%clk 0:02:35.8]} 9... O-O
{[%clk 0:02:28.3]} 10. O-O {[%clk 0:02:06.5]} 10... Nxe5 {[%clk 0:02:26.8]} 11.
Bxe5 {[%clk 0:02:01.7]} 11... a6 {[%clk 0:02:17.2]} 12. Be2 {[%clk 0:01:57.3]}
12... c4 {[%clk 0:02:14.7]} 13. Qd1 {[%clk 0:01:56.7]} 13... b5 {[%clk
0:02:14.4]} 14. f3 {[%clk 0:01:54.2]} 14... a5 {[%clk 0:02:13.2]} 15. g4 {[%clk
0:01:53.5]} 15... Bg6 {[%clk 0:02:12.6]} 16. h4 {[%clk 0:01:51.8]} 16... h5
{[%clk 0:02:08.7]} 17. Bxf6 {[%clk 0:01:40.3]} 17... Bxf6 {[%clk 0:02:06.4]} 18.
g5 {[%clk 0:01:40.5]} 18... Be7 {[%clk 0:02:06.6]} 19. f4 {[%clk 0:01:40.6]}
19... Bf5 {[%clk 0:01:50.6]} 20. Bxh5 {[%clk 0:01:38.9]} 20... g6 {[%clk
0:01:50.5]} 21. Bg4 {[%clk 0:01:37]} 21... Kg7 {[%clk 0:01:51.4]} 22. Bxf5
{[%clk 0:01:33]} 22... exf5 {[%clk 0:01:52.3]} 23. Nf3 {[%clk 0:01:28]} 23...
Qe6 {[%clk 0:01:48.8]} 24. Qe2 {[%clk 0:01:20.7]} 24... Rh8 {[%clk 0:01:43]} 25.
Kg2 {[%clk 0:01:16.4]} 25... b4 {[%clk 0:01:42.9]} 26. Rh1 {[%clk 0:01:11.9]}
26... Rab8 {[%clk 0:01:35]} 27. Ne5 {[%clk 0:01:02.9]} 27... a4 {[%clk
0:00:58.5]} 28. h5 {[%clk 0:00:38.5]} 28... gxh5 {[%clk 0:00:54.3]} 29. Rxh5
{[%clk 0:00:33.3]} 29... a3 {[%clk 0:00:54.1]} 30. cxb4 {[%clk 0:00:27.2]} 30...
axb2 {[%clk 0:00:44.2]} 31. Rah1 {[%clk 0:00:16.2]} 31... c3 {[%clk 0:00:34.4]}
32. Rh6 {[%clk 0:00:13]} 32... Rxh6 {[%clk 0:00:28.7]} 33. Rxh6 {[%clk
0:00:11.4]} 33... b1=Q {[%clk 0:00:09.4]} 0-1

[Event "Late-Titled-Tuesday-Blitz-November-28-2023"]
[Site "Chess.com"]
[Date "2023.11.28"]
[Round "1"]
[White "Sulthankan"]
[Black "Sl4werThanYou"]
[Result "0-1"]
[WhiteElo "2362"]
[BlackElo "2684"]
[TimeControl "180+1"]
[EndTime "14:07:25 PST"]
[Termination "Sl4werThanYou won on time"]

1. d4 {[%clk 0:03:00.9]} 1... d5 {[%clk 0:02:55.6]} 2. c4 {[%clk 0:02:56.8]}
2... e6 {[%clk 0:02:54.1]} 3. Nf3 {[%clk 0:02:56.6]} 3... Nf6 {[%clk 0:02:53.5]}
4. g3 {[%clk 0:02:56.5]} 4... Be7 {[%clk 0:02:52.3]} 5. Bg2 {[%clk 0:02:56.5]}
5... O-O {[%clk 0:02:53]} 6. O-O {[%clk 0:02:56.5]} 6... a5 {[%clk 0:02:53.4]}
7. Qc2 {[%clk 0:02:54.7]} 7... Nc6 {[%clk 0:02:47.7]} 8. Rd1 {[%clk 0:02:47.6]}
8... dxc4 {[%clk 0:02:37.6]} 9. Qxc4 {[%clk 0:02:48.5]} 9... a4 {[%clk
0:02:22.9]} 10. Nc3 {[%clk 0:02:32.8]} 10... a3 {[%clk 0:02:21.9]} 11. bxa3
{[%clk 0:02:26]} 11... Bxa3 {[%clk 0:02:21.7]} 12. Bxa3 {[%clk 0:02:13.7]} 12...
Rxa3 {[%clk 0:02:22.6]} 13. Nb5 {[%clk 0:02:13.9]} 13... Ra6 {[%clk 0:02:07.8]}
14. Ne5 {[%clk 0:02:12]} 14... Bd7 {[%clk 0:02:07.6]} 15. Rac1 {[%clk
0:01:49.2]} 15... Na5 {[%clk 0:01:42]} 16. Qa4 {[%clk 0:01:49.5]} 16... Be8
{[%clk 0:01:27.3]} 17. Qb4 {[%clk 0:01:43.3]} 17... Bxb5 {[%clk 0:01:24.9]} 18.
Qxb5 {[%clk 0:01:42.8]} 18... c6 {[%clk 0:01:25.6]} 19. Qb4 {[%clk 0:01:39.5]}
19... Nd7 {[%clk 0:01:24.4]} 20. e3 {[%clk 0:01:09.1]} 20... Re8 {[%clk
0:01:09.7]} 21. Bf1 {[%clk 0:01:08.2]} 21... Ra7 {[%clk 0:01:05.8]} 22. Nc4
{[%clk 0:01:00.6]} 22... Nxc4 {[%clk 0:01:03.7]} 23. Bxc4 {[%clk 0:00:52.5]}
23... Qa5 {[%clk 0:01:04.2]} 24. Qd6 {[%clk 0:00:39.7]} 24... Nf6 {[%clk
0:01:01]} 25. Rb1 {[%clk 0:00:34.9]} 25... Rd8 {[%clk 0:01:00.2]} 26. Qe5 {[%clk
0:00:31.1]} 26... Qa4 {[%clk 0:00:34.3]} 27. Bb3 {[%clk 0:00:24.2]} 27... Qa3
{[%clk 0:00:34.2]} 28. e4 {[%clk 0:00:18.6]} 28... h6 {[%clk 0:00:34.3]} 29. d5
{[%clk 0:00:17.8]} 29... cxd5 {[%clk 0:00:33.6]} 30. exd5 {[%clk 0:00:18.7]}
30... Qa5 {[%clk 0:00:27]} 31. Rbc1 {[%clk 0:00:11.1]} 31... exd5 {[%clk
0:00:20.2]} 32. Rc7 {[%clk 0:00:08.2]} 32... Qb5 {[%clk 0:00:11.3]} 33. Qe7
{[%clk 0:00:06.1]} 33... Rf8 {[%clk 0:00:11.8]} 34. Qd6 {[%clk 0:00:02.5]} 34...
Ne8 {[%clk 0:00:09.1]} 35. Qe7 {[%clk 0:00:02]} 35... Nxc7 {[%clk 0:00:09]} 36.
Qxc7 {[%clk 0:00:02.9]} 36... Qc6 {[%clk 0:00:09.3]} 37. Qe7 {[%clk 0:00:02.9]}
37... Ra5 {[%clk 0:00:07.4]} 38. Re1 {[%clk 0:00:02.4]} 38... Rc5 {[%clk
0:00:07.4]} 39. Re5 {[%clk 0:00:02.2]} 39... Qc7 {[%clk 0:00:07.7]} 0-1

[Event "Late-Titled-Tuesday-Blitz-November-28-2023"]
[Site "Chess.com"]
[Date "2023.11.28"]
[Round "1"]
[White "szefru"]
[Black "Hilary46"]
[Result "0-1"]
[WhiteElo "2332"]
[BlackElo "2638"]
[TimeControl "180+1"]
[EndTime "14:07:28 PST"]
[Termination "Hilary46 won by resignation"]

1. e4 {[%clk 0:03:00.9]} 1... e5 {[%clk 0:02:54.4]} 2. Nf3 {[%clk 0:02:59.4]}
2... Nc6 {[%clk 0:02:55.1]} 3. Bb5 {[%clk 0:02:58.8]} 3... a6 {[%clk 0:02:55.8]}
4. Ba4 {[%clk 0:02:58.6]} 4... Nf6 {[%clk 0:02:56.5]} 5. Qe2 {[%clk 0:02:58.4]}
5... b5 {[%clk 0:02:55.9]} 6. Bb3 {[%clk 0:02:58.4]} 6... Be7 {[%clk 0:02:53.5]}
7. O-O {[%clk 0:02:56.5]} 7... O-O {[%clk 0:02:54.1]} 8. c3 {[%clk 0:02:56.3]}
8... d5 {[%clk 0:02:50.9]} 9. d3 {[%clk 0:02:49.3]} 9... Re8 {[%clk 0:02:40.6]}
10. Rd1 {[%clk 0:02:48.6]} 10... d4 {[%clk 0:02:39.6]} 11. Nbd2 {[%clk
0:02:46.3]} 11... h6 {[%clk 0:02:35]} 12. Nf1 {[%clk 0:02:46.2]} 12... Bf8
{[%clk 0:02:29.1]} 13. Ng3 {[%clk 0:02:46.1]} 13... Na5 {[%clk 0:02:25.9]} 14.
Bc2 {[%clk 0:02:29.5]} 14... c5 {[%clk 0:02:25]} 15. Nh4 {[%clk 0:02:19.4]}
15... Nc6 {[%clk 0:02:21.8]} 16. Nhf5 {[%clk 0:02:18]} 16... Kh7 {[%clk
0:02:03.7]} 17. Nh5 {[%clk 0:02:04.6]} 17... Nxh5 {[%clk 0:01:43.1]} 18. Qxh5
{[%clk 0:01:56.5]} 18... g6 {[%clk 0:01:42.5]} 19. Qf3 {[%clk 0:01:52.2]} 19...
gxf5 {[%clk 0:01:42.1]} 20. exf5 {[%clk 0:01:53.1]} 20... Qf6 {[%clk 0:01:37.4]}
21. g4 {[%clk 0:01:43.1]} 21... Bb7 {[%clk 0:01:31]} 22. Qh3 {[%clk 0:01:28.2]}
22... Bd6 {[%clk 0:00:52.4]} 23. Kf1 {[%clk 0:01:05.2]} 23... Rg8 {[%clk
0:00:43.5]} 24. g5 {[%clk 0:00:59.7]} 24... Rxg5 {[%clk 0:00:43.4]} 25. Bxg5
{[%clk 0:00:59.4]} 25... Qxg5 {[%clk 0:00:44.3]} 26. Ke2 {[%clk 0:00:55.4]}
26... Ne7 {[%clk 0:00:41.3]} 27. Bb3 {[%clk 0:00:36.1]} 27... Nd5 {[%clk
0:00:31.2]} 28. Bxd5 {[%clk 0:00:29.8]} 28... Bxd5 {[%clk 0:00:32.1]} 29. Rg1
{[%clk 0:00:29.2]} 29... Qf6 {[%clk 0:00:32.4]} 30. Qh5 {[%clk 0:00:19.7]} 30...
e4 {[%clk 0:00:30.4]} 31. Rg4 {[%clk 0:00:13.5]} 31... exd3+ {[%clk 0:00:29.6]}
32. Kxd3 {[%clk 0:00:13]} 32... dxc3 {[%clk 0:00:21.8]} 33. Rag1 {[%clk
0:00:10.7]} 33... cxb2 {[%clk 0:00:19.6]} 34. Rg7+ {[%clk 0:00:10.1]} 34... Qxg7
{[%clk 0:00:19.5]} 35. Rxg7+ {[%clk 0:00:10.9]} 35... Kxg7 {[%clk 0:00:20.4]}
36. Qg4+ {[%clk 0:00:10.8]} 36... Kf8 {[%clk 0:00:20.3]} 37. Kc2 {[%clk
0:00:11.4]} 37... Be5 {[%clk 0:00:20]} 38. f4 {[%clk 0:00:10.6]} 38... Bf6
{[%clk 0:00:19.5]} 39. Qh5 {[%clk 0:00:10.8]} 39... Be4+ {[%clk 0:00:19.3]} 40.
Kd2 {[%clk 0:00:10.6]} 40... b1=Q {[%clk 0:00:15.9]} 41. Qxh6+ {[%clk
0:00:10.8]} 41... Bg7 {[%clk 0:00:16.3]} 42. Qd6+ {[%clk 0:00:10.1]} 42... Kg8
{[%clk 0:00:15.9]} 43. f6 {[%clk 0:00:10.7]} 43... Qd3+ {[%clk 0:00:13.2]} 44.
Qxd3 {[%clk 0:00:10.9]} 44... Bxd3 {[%clk 0:00:14.1]} 45. fxg7 {[%clk
0:00:10.4]} 45... Bc4 {[%clk 0:00:13.7]} 46. h4 {[%clk 0:00:09.5]} 46... Kxg7
{[%clk 0:00:13.5]} 0-1

[Event "Late-Titled-Tuesday-Blitz-November-28-2023"]
[Site "Chess.com"]
[Date "2023.11.28"]
[Round "1"]
[White "Dinamo81"]
[Black "2346PL"]
[Result "1-0"]
[WhiteElo "2686"]
[BlackElo "2362"]
[TimeControl "180+1"]
[EndTime "14:07:30 PST"]
[Termination "Dinamo81 won by resignation"]

1. d4 {[%clk 0:02:59.2]} 1... d6 {[%clk 0:02:59.4]} 2. e4 {[%clk 0:02:58.2]}
2... Nf6 {[%clk 0:02:58.9]} 3. Nc3 {[%clk 0:02:57.8]} 3... e5 {[%clk 0:02:59.6]}
4. Nf3 {[%clk 0:02:56.5]} 4... Nbd7 {[%clk 0:02:59.5]} 5. Rg1 {[%clk 0:02:56.2]}
5... g6 {[%clk 0:02:58.8]} 6. g4 {[%clk 0:02:52.7]} 6... Bg7 {[%clk 0:02:59]} 7.
g5 {[%clk 0:02:52.6]} 7... Nh5 {[%clk 0:02:59.1]} 8. Be3 {[%clk 0:02:52.2]} 8...
c6 {[%clk 0:02:57.8]} 9. Qd2 {[%clk 0:02:50.2]} 9... O-O {[%clk 0:02:57.2]} 10.
a4 {[%clk 0:02:41.7]} 10... a5 {[%clk 0:02:55.2]} 11. O-O-O {[%clk 0:02:39]}
11... Qe7 {[%clk 0:02:51.1]} 12. Bc4 {[%clk 0:02:32.8]} 12... Re8 {[%clk
0:02:26.9]} 13. dxe5 {[%clk 0:02:25.6]} 13... Nxe5 {[%clk 0:02:22.8]} 14. Nxe5
{[%clk 0:02:24.9]} 14... dxe5 {[%clk 0:02:18.1]} 15. Qd6 {[%clk 0:02:02.2]}
15... Qxd6 {[%clk 0:02:16.2]} 16. Rxd6 {[%clk 0:02:03.1]} 16... Bf8 {[%clk
0:02:16.5]} 17. Rd2 {[%clk 0:02:02.3]} 17... Nf4 {[%clk 0:02:09.8]} 18. Rgd1
{[%clk 0:02:00.9]} 18... Bg4 {[%clk 0:02:04.7]} 19. Rg1 {[%clk 0:01:57.2]} 19...
Be6 {[%clk 0:02:03]} 20. Bxe6 {[%clk 0:01:53.8]} 20... Nxe6 {[%clk 0:02:00.6]}
21. Rd7 {[%clk 0:01:51]} 21... Re7 {[%clk 0:01:51.7]} 22. Rgd1 {[%clk
0:01:48.2]} 22... Nf4 {[%clk 0:01:39.4]} 23. Rxe7 {[%clk 0:01:28.7]} 23... Bxe7
{[%clk 0:01:39.2]} 24. Rd7 {[%clk 0:01:29.3]} 24... Bxg5 {[%clk 0:01:34.9]} 25.
Rxb7 {[%clk 0:01:29.9]} 25... Ra6 {[%clk 0:01:24.4]} 26. b3 {[%clk 0:01:25.8]}
26... Ne6 {[%clk 0:01:21.4]} 27. Bxg5 {[%clk 0:01:21.9]} 27... Nxg5 {[%clk
0:01:22.3]} 28. Kd1 {[%clk 0:01:16.6]} 28... Nf3 {[%clk 0:01:16.4]} 29. Ke2
{[%clk 0:01:08.3]} 29... Nd4+ {[%clk 0:01:12.7]} 30. Kd3 {[%clk 0:01:07.2]}
30... h5 {[%clk 0:01:07.8]} 31. Nd1 {[%clk 0:01:04.4]} 31... h4 {[%clk 0:01:05]}
32. h3 {[%clk 0:01:03.6]} 32... c5 {[%clk 0:01:01.6]} 33. Ne3 {[%clk 0:01:03.2]}
33... Rf6 {[%clk 0:01:00.2]} 34. Ng4 {[%clk 0:00:59.9]} 34... Rf3+ {[%clk
0:00:59.5]} 35. Kc4 {[%clk 0:01:00.4]} 35... Nxc2 {[%clk 0:00:52.1]} 36. Kxc5
{[%clk 0:00:59.3]} 36... Nd4 {[%clk 0:00:48.1]} 37. Nxe5 {[%clk 0:00:56.4]}
37... Rxb3 {[%clk 0:00:39]} 38. Rxf7 {[%clk 0:00:53.2]} 38... Rb4 {[%clk
0:00:26.8]} 39. Rf6 {[%clk 0:00:45.8]} 39... Nb3+ {[%clk 0:00:22.8]} 40. Kd5
{[%clk 0:00:44.3]} 40... Rd4+ {[%clk 0:00:23.1]} 41. Ke6 {[%clk 0:00:44.4]}
41... Rxe4 {[%clk 0:00:23.4]} 42. Rxg6+ {[%clk 0:00:44.3]} 42... Kh7 {[%clk
0:00:23.9]} 43. Rg4 {[%clk 0:00:43.1]} 43... Rxg4 {[%clk 0:00:22]} 44. hxg4
{[%clk 0:00:41.4]} 44... Nc5+ {[%clk 0:00:22.9]} 45. Kf7 {[%clk 0:00:37.9]}
45... h3 {[%clk 0:00:22.5]} 46. Nf3 {[%clk 0:00:37.3]} 46... Ne4 {[%clk
0:00:15.9]} 47. g5 {[%clk 0:00:36.6]} 47... h2 {[%clk 0:00:14.7]} 48. g6+ {[%clk
0:00:36.4]} 48... Kh6 {[%clk 0:00:15.3]} 49. Nxh2 {[%clk 0:00:36.6]} 49... Ng5+
{[%clk 0:00:15.9]} 50. Kf6 {[%clk 0:00:36.8]} 50... Ne4+ {[%clk 0:00:15.3]} 51.
Kf5 {[%clk 0:00:37.2]} 51... Nd6+ {[%clk 0:00:14.7]} 52. Ke6 {[%clk 0:00:37.8]}
52... Ne4 {[%clk 0:00:13.5]} 53. f3 {[%clk 0:00:35.6]} 53... Nc5+ {[%clk
0:00:13.1]} 54. Kf6 {[%clk 0:00:35.2]} 54... Nxa4 {[%clk 0:00:14]} 55. Ng4+
{[%clk 0:00:35.2]} 55... Kh5 {[%clk 0:00:13]} 56. g7 {[%clk 0:00:36.1]} 1-0

[Event "Late-Titled-Tuesday-Blitz-November-28-2023"]
[Site "Chess.com"]
[Date "2023.11.28"]
[Round "1"]
[White "ckgchess"]
[Black "mistrzemi"]
[Result "1-0"]
[WhiteElo "2856"]
[BlackElo "2437"]
[TimeControl "180+1"]
[EndTime "14:07:31 PST"]
[Termination "ckgchess won by resignation"]

1. e4 {[%clk 0:03:00.9]} 1... e5 {[%clk 0:02:59.9]} 2. Nf3 {[%clk 0:03:00.6]}
2... Nc6 {[%clk 0:03:00.5]} 3. Bc4 {[%clk 0:03:00.7]} 3... Nf6 {[%clk
0:03:00.8]} 4. d3 {[%clk 0:02:56.9]} 4... Be7 {[%clk 0:03:00.6]} 5. a4 {[%clk
0:02:56.6]} 5... O-O {[%clk 0:02:59.6]} 6. O-O {[%clk 0:02:56.7]} 6... d5 {[%clk
0:02:55.6]} 7. exd5 {[%clk 0:02:56]} 7... Nxd5 {[%clk 0:02:56.5]} 8. Re1 {[%clk
0:02:56.4]} 8... Qd6 {[%clk 0:02:52.2]} 9. Nbd2 {[%clk 0:02:54.6]} 9... Nb6
{[%clk 0:02:51.9]} 10. Bb5 {[%clk 0:02:52.9]} 10... f6 {[%clk 0:02:46.4]} 11. a5
{[%clk 0:02:50.1]} 11... Nd5 {[%clk 0:02:45.1]} 12. a6 {[%clk 0:02:49.6]} 12...
bxa6 {[%clk 0:02:28.1]} 13. Ne4 {[%clk 0:02:49.5]} 13... Qe6 {[%clk 0:02:02.1]}
14. Bc4 {[%clk 0:02:49.7]} 14... Rd8 {[%clk 0:01:49.1]} 15. d4 {[%clk 0:02:41]}
15... Bb7 {[%clk 0:01:21]} 16. Nc3 {[%clk 0:02:23.1]} 16... Ncb4 {[%clk
0:01:13.6]} 17. dxe5 {[%clk 0:02:23]} 17... Kh8 {[%clk 0:00:34.7]} 18. Ne4
{[%clk 0:02:23]} 18... Qb6 {[%clk 0:00:24.3]} 19. Qe2 {[%clk 0:02:20.8]} 19...
Bf8 {[%clk 0:00:16.6]} 20. c3 {[%clk 0:02:20.6]} 20... Nc6 {[%clk 0:00:15.8]}
21. exf6 {[%clk 0:02:06.9]} 21... gxf6 {[%clk 0:00:16.1]} 22. Bxd5 {[%clk
0:01:51.6]} 22... Rxd5 {[%clk 0:00:17]} 23. Nxf6 {[%clk 0:01:52.2]} 23... Rf5
{[%clk 0:00:15.6]} 24. Nd7 {[%clk 0:01:44.8]} 24... Qb3 {[%clk 0:00:12.6]} 25.
Qe4 {[%clk 0:01:34.5]} 25... Qf7 {[%clk 0:00:11.7]} 26. Nde5 {[%clk 0:01:26.9]}
26... Nxe5 {[%clk 0:00:12]} 27. Nxe5 {[%clk 0:01:27.5]} 27... Qd5 {[%clk
0:00:03.1]} 28. Qxd5 {[%clk 0:01:21.8]} 28... Bxd5 {[%clk 0:00:04]} 29. Be3
{[%clk 0:01:22.3]} 29... Bd6 {[%clk 0:00:03.8]} 30. Rad1 {[%clk 0:01:17.1]}
30... Bb7 {[%clk 0:00:02]} 31. Bd4 {[%clk 0:01:12.6]} 31... Kg8 {[%clk
0:00:02.3]} 32. Nc4 {[%clk 0:01:12.1]} 32... Raf8 {[%clk 0:00:01.8]} 33. Nxd6
{[%clk 0:01:10.7]} 33... cxd6 {[%clk 0:00:02.7]} 34. Re7 {[%clk 0:01:11.1]}
34... R5f7 {[%clk 0:00:02.7]} 35. Rde1 {[%clk 0:01:10.1]} 35... Bd5 {[%clk
0:00:02.6]} 36. f3 {[%clk 0:01:02.5]} 36... Rxe7 {[%clk 0:00:02.4]} 37. Rxe7
{[%clk 0:01:03.4]} 37... Rf7 {[%clk 0:00:02.8]} 38. Re8+ {[%clk 0:01:03.7]}
38... Rf8 {[%clk 0:00:03]} 39. Re1 {[%clk 0:01:03.8]} 39... Kf7 {[%clk
0:00:02.5]} 40. Ra1 {[%clk 0:01:03.3]} 40... Rb8 {[%clk 0:00:02.2]} 41. b4
{[%clk 0:01:01.1]} 41... Bc4 {[%clk 0:00:02]} 42. Bxa7 {[%clk 0:01:00.9]} 42...
Re8 {[%clk 0:00:02.7]} 43. Rd1 {[%clk 0:00:58.3]} 43... d5 {[%clk 0:00:03.3]}
44. Rd4 {[%clk 0:00:55.9]} 44... h5 {[%clk 0:00:03.9]} 45. Rf4+ {[%clk
0:00:55.3]} 45... Kg6 {[%clk 0:00:04.6]} 46. Bd4 {[%clk 0:00:56]} 46... Re6
{[%clk 0:00:04.6]} 47. h4 {[%clk 0:00:55.8]} 47... Rc6 {[%clk 0:00:04]} 48. Kf2
{[%clk 0:00:56]} 48... Re6 {[%clk 0:00:04.7]} 49. Kg3 {[%clk 0:00:55.9]} 49...
Rc6 {[%clk 0:00:05]} 50. Rf8 {[%clk 0:00:55.9]} 50... Re6 {[%clk 0:00:05.9]} 51.
Rg8+ {[%clk 0:00:55]} 51... Kh7 {[%clk 0:00:06]} 52. Rh8+ {[%clk 0:00:49.8]}
52... Kg6 {[%clk 0:00:06.4]} 53. Kf4 {[%clk 0:00:50.7]} 53... Bf1 {[%clk
0:00:05.7]} 54. g3 {[%clk 0:00:49.2]} 54... Kf7 {[%clk 0:00:06.1]} 55. Rxh5
{[%clk 0:00:49.1]} 55... Rg6 {[%clk 0:00:05.5]} 56. Rxd5 {[%clk 0:00:48.8]} 1-0

[Event "Late-Titled-Tuesday-Blitz-November-28-2023"]
[Site "Chess.com"]
[Date "2023.11.28"]
[Round "1"]
[White "FairChess_on_YouTube"]
[Black "slorovel"]
[Result "1-0"]
[WhiteElo "3087"]
[BlackElo "2499"]
[TimeControl "180+1"]
[EndTime "14:07:33 PST"]
[Termination "FairChess_on_YouTube won by resignation"]

1. d4 {[%clk 0:03:00.9]} 1... Nf6 {[%clk 0:02:59.1]} 2. c4 {[%clk 0:03:01.1]}
2... e6 {[%clk 0:02:59.2]} 3. Nc3 {[%clk 0:03:01.4]} 3... d5 {[%clk 0:02:59.5]}
4. cxd5 {[%clk 0:03:01.3]} 4... exd5 {[%clk 0:03:00.4]} 5. Bg5 {[%clk
0:03:00.9]} 5... Be7 {[%clk 0:03:00.6]} 6. e3 {[%clk 0:03:01.3]} 6... c6 {[%clk
0:03:00.7]} 7. Bd3 {[%clk 0:03:01.7]} 7... O-O {[%clk 0:02:59]} 8. Qc2 {[%clk
0:03:01.5]} 8... h6 {[%clk 0:02:58.4]} 9. Bh4 {[%clk 0:03:01.8]} 9... Re8 {[%clk
0:02:58.7]} 10. Nge2 {[%clk 0:03:00.9]} 10... a5 {[%clk 0:02:58.8]} 11. O-O
{[%clk 0:03:00.1]} 11... Na6 {[%clk 0:02:58.7]} 12. a3 {[%clk 0:03:00.6]} 12...
Nc7 {[%clk 0:02:59.1]} 13. Rae1 {[%clk 0:03:01]} 13... Ne6 {[%clk 0:02:56.5]}
14. f3 {[%clk 0:03:00]} 14... b5 {[%clk 0:02:53.3]} 15. Kh1 {[%clk 0:02:58.5]}
15... b4 {[%clk 0:02:52.7]} 16. Na4 {[%clk 0:02:55.4]} 16... Ba6 {[%clk
0:02:48.4]} 17. Bxa6 {[%clk 0:02:49.5]} 17... Rxa6 {[%clk 0:02:49.3]} 18. e4
{[%clk 0:02:50]} 18... dxe4 {[%clk 0:02:41.4]} 19. fxe4 {[%clk 0:02:50.1]} 19...
Ng4 {[%clk 0:02:41.7]} 20. Bxe7 {[%clk 0:02:44.8]} 20... Qxe7 {[%clk 0:02:42.6]}
21. Qd3 {[%clk 0:02:36.7]} 21... Qh4 {[%clk 0:02:29.6]} 22. Qg3 {[%clk
0:02:23.4]} 22... Qxg3 {[%clk 0:02:28.7]} 23. hxg3 {[%clk 0:02:24.3]} 23... bxa3
{[%clk 0:02:28.2]} 24. bxa3 {[%clk 0:02:24.1]} 24... Ng5 {[%clk 0:02:27]} 25.
Nec3 {[%clk 0:02:17.6]} 25... Ra7 {[%clk 0:02:14.6]} 26. Nc5 {[%clk 0:02:12.1]}
26... Rae7 {[%clk 0:01:59.4]} 27. Rf4 {[%clk 0:01:59.3]} 27... Nf6 {[%clk
0:01:57.3]} 28. Kh2 {[%clk 0:01:57.8]} 28... Nd5 {[%clk 0:01:49.4]} 29. exd5
{[%clk 0:01:52.4]} 29... Rxe1 {[%clk 0:01:44.7]} 30. dxc6 {[%clk 0:01:53]} 30...
Rc1 {[%clk 0:01:42.7]} 31. Nd5 {[%clk 0:01:52.7]} 31... Ne6 {[%clk 0:01:19.1]}
32. Re4 {[%clk 0:01:49.3]} 32... Kf8 {[%clk 0:01:00.6]} 33. Nd7+ {[%clk
0:01:38.7]} 33... Kg8 {[%clk 0:00:54.9]} 34. Nc5 {[%clk 0:01:22.9]} 34... Kf8
{[%clk 0:00:54.5]} 35. Nd7+ {[%clk 0:00:50.2]} 35... Kg8 {[%clk 0:00:54.4]} 36.
Nf4 {[%clk 0:00:37]} 36... Nc7 {[%clk 0:00:28]} 37. Rxe8+ {[%clk 0:00:36.4]}
37... Nxe8 {[%clk 0:00:28.9]} 38. d5 {[%clk 0:00:37.1]} 38... Rc3 {[%clk
0:00:28.3]} 39. a4 {[%clk 0:00:29.6]} 39... Rc4 {[%clk 0:00:27.8]} 40. Nb6
{[%clk 0:00:27.8]} 40... Rb4 {[%clk 0:00:27.6]} 41. Nc8 {[%clk 0:00:28.3]} 41...
Rb8 {[%clk 0:00:20]} 42. Na7 {[%clk 0:00:23.6]} 42... Rb4 {[%clk 0:00:19.7]} 43.
Nb5 {[%clk 0:00:23.1]} 43... Rxa4 {[%clk 0:00:19]} 44. d6 {[%clk 0:00:23.5]}
44... Kf8 {[%clk 0:00:13.5]} 45. Nd5 {[%clk 0:00:18.6]} 45... Rc4 {[%clk
0:00:10.8]} 46. d7 {[%clk 0:00:17.9]} 1-0